bitfinex-derivatives/quotes_BTCF0:USTF0_20251120
["timestamp","ask_amount","ask_price","bid_price","bid_amount"]
[1763635606567,0.09305803,91782.0,91781.0,0.09348335]
[1763635613767,0.00219803,91782.0,91781.0,0.09348335]
[1763635613969,0.14345803,91786.0,91785.0,0.04679]
[1763635614174,0.36096335,91795.0,91785.0,0.04679]
[1763635614175,0.00016335,91795.0,91794.0,0.1090623]
[1763635614369,0.11944,91805.0,91802.0,0.1090528]
[1763635614664,0.11944,91805.0,91804.0,0.36299803]
[1763635616076,0.12044,91805.0,91804.0,0.36299803]
[1763635616569,0.11944,91805.0,91804.0,0.36299803]
[1763635616766,0.12044,91805.0,91804.0,0.36299803]
[1763635616964,0.12144,91805.0,91804.0,0.36299803]
[1763635618576,0.00016335,91814.0,91813.0,0.1090397]
[1763635618772,0.04455335,91814.0,91813.0,0.11123773]
[1763635619269,0.09102335,91814.0,91813.0,0.11123773]
[1763635619774,0.09275602,91814.0,91813.0,0.10739803]
[1763635619968,0.09275602,91814.0,91813.0,0.00739803]
[1763635619969,0.09375602,91814.0,91813.0,0.00739803]
[1763635621465,0.11944,91812.0,91811.0,0.1090412]
[1763635621665,0.12163803,91812.0,91811.0,0.2142012]
[1763635622266,0.12163803,91812.0,91811.0,0.2585412]
[1763635622267,0.00219803,91812.0,91811.0,0.2585412]
[1763635622468,0.05518803,91812.0,91811.0,0.2585412]
[1763635622973,0.05718803,91812.0,91811.0,0.2585412]
[1763635623176,0.05718803,91812.0,91811.0,0.1533812]
[1763635623382,0.05718803,91812.0,91811.0,0.2585412]
[1763635623569,0.002,91812.0,91811.0,0.2585412]
[1763635624169,0.002,91812.0,91811.0,0.26921959]
[1763635626280,0.00016335,91814.0,91813.0,0.04434]
[1763635626476,0.12652,91830.0,91829.0,0.1533607]
[1763635626679,0.12871803,91830.0,91829.0,0.2585207]
[1763635627074,0.12871803,91830.0,91829.0,0.1495]
[1763635627675,0.09794,91821.0,91820.0,0.02217]
[1763635627876,0.10013803,91821.0,91820.0,0.12733]
[1763635629280,0.10213803,91821.0,91820.0,0.1495]
[1763635629878,0.10313803,91821.0,91820.0,0.1495]
[1763635630080,0.10313803,91821.0,91820.0,0.10516]
[1763635630380,0.09794,91819.0,91818.0,0.3608]
[1763635630586,0.09794,91819.0,91818.0,0.46592]
[1763635630587,0.10013803,91819.0,91818.0,0.46592]
[1763635631188,0.10013803,91819.0,91818.0,0.10512]
[1763635631775,0.10113803,91819.0,91818.0,0.10512]
[1763635631979,0.10213803,91819.0,91818.0,0.10512]
[1763635632381,0.10213803,91819.0,91812.0,0.1090402]
[1763635632382,0.09794,91813.0,91812.0,0.1533802]
[1763635632587,0.10013803,91813.0,91812.0,0.2585002]
[1763635633189,0.10013803,91813.0,91812.0,0.14946]
[1763635633389,0.10113803,91813.0,91812.0,0.2585009]
[1763635634682,0.10113803,91813.0,91812.0,0.14946]
[1763635634895,0.10213803,91813.0,91812.0,0.14946]
[1763635637282,0.10213803,91813.0,91805.0,0.1090486]
[1763635637491,0.13093,91806.0,91805.0,0.1533886]
[1763635637693,0.13312803,91806.0,91805.0,0.2585086]
[1763635638988,0.13412803,91806.0,91805.0,0.2585086]
[1763635643396,0.13412803,91806.0,91790.0,0.12557337]
[1763635643397,0.09794,91805.0,91790.0,0.12557337]
[1763635643586,0.10013803,91805.0,91800.0,0.10512]
[1763635644187,0.10013803,91805.0,91791.0,0.1090649]
[1763635644402,0.10013803,91805.0,91798.0,0.10512]
[1763635644600,0.10113803,91805.0,91798.0,0.10512]
[1763635644900,0.10113803,91805.0,91797.0,0.1090585]
[1763635645096,0.10113803,91805.0,91797.0,0.2141785]
[1763635645602,0.10013803,91805.0,91799.0,0.1090556]
[1763635645797,0.10013803,91805.0,91797.0,0.10512]
[1763635645798,0.10013803,91805.0,91804.0,0.04450335]
[1763635646301,0.10013803,91805.0,91804.0,0.00016335]
[1763635651691,0.10113803,91805.0,91804.0,0.00016335]
[1763635653196,0.10013803,91805.0,91804.0,0.00016335]
[1763635653703,0.20918723,91805.0,91804.0,0.00016335]
[1763635655209,0.2058935,91793.0,91791.0,0.07830187]
[1763635655506,0.09683,91789.0,91788.0,0.07830187]
[1763635655696,0.09683,91786.0,91785.0,0.36709]
[1763635655894,0.09902803,91786.0,91785.0,0.36709]
[1763635656508,0.09902803,91786.0,91785.0,0.482453]
[1763635657009,0.09902803,91786.0,91785.0,0.483453]
[1763635662205,0.09902803,91786.0,91785.0,0.37438]
[1763635662714,0.09902803,91786.0,91785.0,0.483453]
[1763635663012,0.09902803,91786.0,91785.0,0.37438]
[1763635667325,0.00219803,91786.0,91785.0,0.37438]
[1763635667814,0.05235803,91786.0,91785.0,0.47946]
[1763635668019,0.09902803,91786.0,91785.0,0.47946]
[1763635668214,0.09902803,91786.0,91785.0,0.55776187]
[1763635668414,0.00219803,91786.0,91785.0,0.55776187]
[1763635668806,0.05235803,91786.0,91785.0,0.55776187]
[1763635669719,0.09902803,91786.0,91785.0,0.55776187]
[1763635670215,0.09902803,91786.0,91785.0,0.47946]
[1763635670518,0.09902803,91786.0,91785.0,0.37438]
[1763635670817,0.09902803,91786.0,91785.0,0.47946]
[1763635672615,0.09902803,91786.0,91785.0,0.37438]
[1763635672820,0.09902803,91786.0,91785.0,0.47946]
[1763635673813,0.09902803,91786.0,91785.0,0.47317]
[1763635674005,0.09902803,91786.0,91785.0,0.46688]
[1763635675312,0.09902803,91786.0,91785.0,0.47317]
[1763635675506,0.09902803,91786.0,91785.0,0.36809]
[1763635675714,0.09902803,91786.0,91785.0,0.3618]
[1763635678919,0.09902803,91786.0,91785.0,0.36809]
[1763635679313,0.09902803,91786.0,91785.0,0.37438]
[1763635679915,0.05235803,91786.0,91785.0,0.37438]
[1763635680929,0.00219803,91786.0,91785.0,0.37438]
[1763635681108,0.12519,91794.0,91793.0,0.1216435]
[1763635681422,0.12738803,91794.0,91793.0,0.2266835]
[1763635682120,0.12738803,91794.0,91793.0,0.5874835]
[1763635682121,0.00219803,91794.0,91793.0,0.5874835]
[1763635682523,0.04636803,91794.0,91793.0,0.5874835]
[1763635682722,0.07183803,91794.0,91793.0,0.5874835]
[1763635683223,0.12101803,91794.0,91793.0,0.11762]
[1763635685317,0.00219803,91794.0,91793.0,0.11762]
[1763635685717,0.38916,91800.0,91794.0,0.1090623]
[1763635688827,0.09351335,91795.0,91794.0,0.1090623]
[1763635689217,0.09571138,91795.0,91794.0,0.1090623]
[1763635690820,0.12118138,91795.0,91794.0,0.1090623]
[1763635692227,0.12118138,91795.0,91793.0,0.10504]
[1763635693720,0.12118138,91795.0,91794.0,0.1090623]
[1763635695530,0.12118138,91795.0,91793.0,0.5749034]
[1763635699427,0.09335,91794.0,91793.0,0.4698634]
[1763635699731,0.09554803,91794.0,91793.0,0.46584]
[1763635712247,0.02563335,91795.0,91794.0,0.1090623]
[1763635712654,0.06611335,91795.0,91794.0,0.1090623]
[1763635712853,0.10449335,91795.0,91794.0,0.1090623]
[1763635713257,0.10669138,91795.0,91794.0,0.1090623]
[1763635715844,0.07886,91794.0,91793.0,0.56395835]
[1763635716050,0.08105803,91794.0,91793.0,0.67302185]
[1763635718951,0.09418007,91794.0,91793.0,0.67302185]
[1763635719353,0.13583965,91794.0,91793.0,0.67302185]
[1763635719847,0.13583965,91794.0,91793.0,0.56395835]
[1763635720253,0.13583965,91794.0,91793.0,0.67302185]
[1763635720957,0.13583965,91794.0,91793.0,0.3608]
[1763635721162,0.13583965,91794.0,91793.0,0.46584]
[1763635721552,0.13583965,91794.0,91793.0,0.56395835]
[1763635726261,0.13583965,91794.0,91793.0,0.46584]
[1763635729657,0.13583965,91794.0,91793.0,0.5749035]
[1763635732666,0.1090404,91813.0,91793.0,0.5749035]
[1763635732667,0.1028,91816.0,91815.0,0.1090374]
[1763635732869,0.10499803,91816.0,91815.0,0.2140774]
[1763635733765,0.10699803,91816.0,91815.0,0.2140774]
[1763635735266,0.10599803,91816.0,91815.0,0.2140774]
[1763635735472,0.10699803,91816.0,91815.0,0.2140774]
[1763635736366,0.10699803,91816.0,91815.0,0.29246378]
[1763635738370,0.10699803,91816.0,91815.0,0.2140774]
[1763635740269,0.002,91816.0,91815.0,0.2140774]
[1763635740666,0.0018355,91816.0,91815.0,0.31222197]
[1763635740868,0.0018355,91816.0,91815.0,0.2140774]
[1763635741067,0.0423155,91816.0,91815.0,0.20692063]
[1763635741378,0.0018355,91816.0,91815.0,0.2140774]
[1763635741575,0.1028,91815.0,91814.0,0.4698386]
[1763635741774,0.08105803,91815.0,91814.0,0.6162986]
[1763635741969,0.07902335,91825.0,91824.0,0.1900367]
[1763635742170,0.04284138,91825.0,91824.0,0.73415606]
[1763635742366,0.00236138,91825.0,91824.0,0.73415606]
[1763635742566,0.00236138,91825.0,91824.0,0.6558767]
[1763635742766,0.07874138,91825.0,91824.0,0.6558767]
[1763635742970,0.07874138,91825.0,91824.0,0.7452212]
[1763635743271,0.07874138,91825.0,91824.0,0.74519073]
[1763635745071,0.07874138,91825.0,91824.0,0.74719073]
[1763635745279,0.07874138,91825.0,91824.0,0.66894424]
[1763635745778,0.00016335,91825.0,91824.0,0.66894424]
[1763635746182,0.03624335,91825.0,91824.0,0.66894424]
[1763635747476,0.07654335,91825.0,91824.0,0.66894424]
[1763635747678,0.00016335,91825.0,91824.0,0.66894424]
[1763635750081,0.02394,91845.0,91824.0,0.66894424]
[1763635750082,0.10032,91845.0,91844.0,0.1858429]
[1763635750282,0.10251803,91845.0,91844.0,0.18184]
[1763635752880,0.10251803,91845.0,91844.0,0.2908429]
[1763635753685,0.03827803,91845.0,91844.0,0.2908429]
[1763635753987,0.07857803,91845.0,91844.0,0.2908429]
[1763635754278,0.07857803,91845.0,91844.0,1.7908429]
[1763635754485,0.10101803,91845.0,91844.0,1.68184]
[1763635755074,0.07857803,91845.0,91844.0,1.68184]
[1763635759880,0.03827803,91845.0,91844.0,1.68184]
[1763635760585,0.07857803,91845.0,91844.0,1.68184]
[1763635762193,0.07857803,91845.0,91844.0,1.7908429]
[1763635765893,0.03827803,91845.0,91844.0,1.7908429]
[1763635766094,0.07857803,91845.0,91844.0,1.7908429]
[1763635766284,0.07857803,91845.0,91844.0,1.68184]
[1763635768792,0.07857803,91845.0,91844.0,1.7908429]
[1763635773999,0.00219803,91845.0,91844.0,1.7908429]
[1763635774198,0.00219803,91845.0,91844.0,1.8065629]
[1763635775400,0.03824803,91845.0,91844.0,1.8065629]
[1763635776602,0.07471803,91845.0,91844.0,1.68184]
[1763635778097,0.07471803,91845.0,91844.0,1.57684]
[1763635778395,0.18371983,91845.0,91844.0,1.6818]
[1763635779208,0.2036424,91836.0,91835.0,0.00016335]
[1763635779502,0.12285383,91836.0,91835.0,0.07355335]
[1763635779700,0.12285383,91836.0,91835.0,0.03755335]
[1763635779900,0.12285383,91836.0,91835.0,0.07355335]
[1763635782907,0.12285383,91836.0,91835.0,0.00016335]
[1763635786308,0.09682803,91836.0,91835.0,0.00016335]
[1763635787100,0.09782803,91836.0,91835.0,0.00016335]
[1763635788711,0.09682803,91836.0,91835.0,0.00016335]
[1763635789303,0.09782803,91836.0,91835.0,0.00016335]
[1763635789705,0.09682803,91836.0,91835.0,0.00016335]
[1763635789905,0.09782803,91836.0,91835.0,0.00016335]
[1763635793413,0.20684043,91836.0,91835.0,0.00016335]
[1763635794401,0.09782803,91836.0,91835.0,0.00016335]
[1763635794604,0.20684043,91836.0,91835.0,0.00016335]
[1763635795011,0.20684043,91836.0,91835.0,0.03755335]
[1763635795214,0.20684043,91836.0,91835.0,0.00016335]
[1763635795514,0.09782803,91836.0,91835.0,0.00016335]
[1763635795918,0.09682803,91836.0,91835.0,0.07355335]
[1763635800411,0.03824803,91836.0,91835.0,0.07355335]
[1763635800612,0.00219803,91836.0,91835.0,0.07355335]
[1763635801217,0.07471803,91836.0,91835.0,0.15179984]
[1763635801415,0.07471803,91836.0,91835.0,0.07355335]
[1763635801611,0.07471803,91836.0,91835.0,0.00016335]
[1763635804523,0.07471803,91836.0,91835.0,0.03366335]
[1763635804714,0.07471803,91836.0,91835.0,0.00016335]
[1763635806823,0.18373043,91836.0,91835.0,0.00016335]
[1763635809221,0.07471803,91836.0,91835.0,0.00016335]
[1763635809412,0.18373043,91836.0,91835.0,0.00016335]
[1763635812110,0.07471803,91836.0,91835.0,0.07261335]
[1763635812613,0.18373043,91836.0,91835.0,0.07261335]
[1763635812824,0.18373043,91836.0,91835.0,0.00016335]
[1763635813417,0.07012,91832.0,91831.0,0.07824649]
[1763635813628,0.07231803,91832.0,91831.0,0.07824649]
[1763635814222,0.1791384,91831.0,91830.0,0.22076569]
[1763635814422,0.18133643,91831.0,91830.0,0.22076569]
[1763635815123,0.18133643,91831.0,91830.0,0.11174649]
[1763635816225,0.18133643,91831.0,91830.0,0.07245]
[1763635816724,0.18133643,91831.0,91830.0,0.0335]
[1763635816925,0.18133643,91831.0,91830.0,0.07245]
[1763635820325,0.18133643,91831.0,91830.0,0.0335]
[1763635820632,0.1791407,91829.0,91828.0,0.07245]
[1763635820831,0.18133873,91829.0,91828.0,0.07245]
[1763635822837,0.07231803,91829.0,91828.0,0.07245]
[1763635826233,0.07231803,91829.0,91828.0,0.15069649]
[1763635828137,0.07231803,91829.0,91828.0,0.07245]
[1763635838143,0.00219803,91829.0,91828.0,0.07245]
[1763635838449,0.4241,91838.0,91837.0,0.1705812]
[1763635838750,0.06549803,91838.0,91837.0,0.2755412]
[1763635839643,0.06549803,91838.0,91837.0,0.16653]
[1763635839950,0.06549803,91838.0,91837.0,0.2755413]
[1763635844251,0.0002722,91846.0,91845.0,0.06157]
[1763635844452,0.06577023,91846.0,91845.0,0.16653]
[1763635847050,0.0319322,91846.0,91845.0,0.16653]
[1763635847245,0.0002722,91846.0,91845.0,0.16653]
[1763635847645,0.0319322,91846.0,91845.0,0.16653]
[1763635848251,0.0635722,91846.0,91845.0,0.16653]
[1763635849746,0.0002722,91846.0,91845.0,0.16653]
[1763635852645,0.0319322,91846.0,91845.0,0.16653]
[1763635853461,0.0002722,91846.0,91845.0,0.16653]
[1763635854257,0.0002722,91846.0,91845.0,0.18022]
[1763635856260,0.0002722,91846.0,91845.0,0.25837956]
[1763635858059,0.0319322,91846.0,91845.0,0.25837956]
[1763635858260,0.02848341,91846.0,91845.0,0.25837956]
[1763635858463,0.063408,91854.0,91853.0,0.06157]
[1763635858762,0.063408,91854.0,91853.0,0.42237]
[1763635858951,0.063408,91854.0,91853.0,0.52733]
[1763635859760,0.065408,91854.0,91853.0,0.52733]
[1763635860664,0.0019446,91854.0,91853.0,0.52733]
[1763635860960,0.08208,91876.0,91875.0,0.06157]
[1763635861161,0.08427803,91876.0,91875.0,0.18683]
[1763635861351,0.06549803,91876.0,91875.0,0.18683]
[1763635862662,0.06549803,91876.0,91875.0,0.1549]
[1763635863255,0.06649803,91876.0,91875.0,0.1549]
[1763635863763,0.06749803,91876.0,91875.0,0.1549]
[1763635865567,0.06749803,91876.0,91875.0,0.18638]
[1763635867367,0.06749803,91876.0,91875.0,0.1549]
[1763635867867,0.06749803,91876.0,91875.0,0.18638]
[1763635874665,0.08368803,91876.0,91875.0,0.18638]
[1763635877076,0.08368803,91876.0,91875.0,0.1549]
[1763635877463,0.08368803,91876.0,91875.0,0.18638]
[1763635877672,0.06749803,91876.0,91875.0,0.18638]
[1763635878063,0.08368803,91876.0,91875.0,0.18638]
[1763635878263,0.06749803,91876.0,91875.0,0.18638]
[1763635878670,0.08368803,91876.0,91875.0,0.18638]
[1763635879770,0.06749803,91876.0,91875.0,0.18638]
[1763635881477,0.06749803,91876.0,91875.0,1.68638]
[1763635883377,0.03188803,91876.0,91875.0,1.68638]
[1763635883568,0.002,91876.0,91875.0,1.68638]
[1763635883969,0.0297,91885.0,91884.0,0.05816]
[1763635884279,0.07358,91885.0,91884.0,0.05816]
[1763635884668,0.07577803,91885.0,91884.0,0.05816]
[1763635885070,0.07677803,91885.0,91884.0,0.05816]
[1763635885573,0.07777803,91885.0,91884.0,0.05816]
[1763635886666,0.06158803,91885.0,91884.0,0.05816]
[1763635887381,0.07777803,91885.0,91884.0,0.05816]
[1763635887670,0.07777803,91885.0,91884.0,0.07846]
[1763635888879,0.07777803,91885.0,91884.0,0.0203]
[1763635890377,0.0563,91867.0,91866.0,0.00016335]
[1763635890578,0.0563,91867.0,91866.0,0.13830965]
[1763635890579,0.05849803,91867.0,91866.0,0.13830965]
[1763635890775,0.05849803,91867.0,91866.0,0.02934335]
[1763635891079,0.05849803,91867.0,91866.0,0.00016335]
[1763635892083,0.41929803,91867.0,91866.0,0.00016335]
[1763635892580,0.05699,91858.0,91857.0,0.65414474]
[1763635892878,0.05918803,91858.0,91857.0,0.6336563]
[1763635895183,0.16816383,91858.0,91857.0,0.52468]
[1763635895575,0.05918803,91858.0,91857.0,0.52468]
[1763635898387,0.05918803,91858.0,91857.0,0.41976]
[1763635898680,0.05918803,91858.0,91857.0,0.49554]
[1763635898873,0.05918803,91858.0,91857.0,0.39062]
[1763635899271,0.05918803,91858.0,91857.0,0.4204]
[1763635900780,0.1689065,91849.0,91848.0,0.65081548]
[1763635900976,0.17110453,91849.0,91848.0,0.52548326]
[1763635901183,0.17110453,91849.0,91848.0,0.42056326]
[1763635902174,0.17110453,91849.0,91848.0,0.42156326]
[1763635902578,0.17110453,91849.0,91848.0,0.42256326]
[1763635903181,0.17110453,91849.0,91848.0,0.42156326]
[1763635904188,0.17110453,91849.0,91848.0,0.05976326]
[1763635905386,0.06211803,91849.0,91848.0,0.05976326]
[1763635907584,0.00219803,91849.0,91848.0,0.07725326]
[1763635907784,0.3608,91854.0,91853.0,0.0596]
[1763635907989,0.05992,91862.0,91861.0,0.0596]
[1763635908185,0.06211803,91862.0,91861.0,0.0596]
[1763635911182,0.17108903,91862.0,91861.0,0.0596]
[1763635915887,0.17108903,91862.0,91861.0,0.1685722]
[1763635917394,0.17108903,91862.0,91861.0,0.0596]
[1763635920191,0.06211803,91862.0,91861.0,0.0596]
[1763635920798,0.00219803,91862.0,91861.0,0.0596]
[1763635921488,0.06211803,91862.0,91861.0,0.0596]
[1763635921892,0.06211803,91862.0,91861.0,0.1685722]
[1763635922784,0.36096303,91867.0,91866.0,0.1623463]
[1763635922989,0.00236106,91867.0,91866.0,0.05338]
[1763635923293,0.02921106,91867.0,91866.0,0.05338]
[1763635923497,0.05743106,91867.0,91866.0,0.05338]
[1763635926396,0.16639616,91867.0,91866.0,0.05338]
[1763635926594,0.05743106,91867.0,91866.0,0.05338]
[1763635927491,0.00236106,91867.0,91866.0,0.05338]
[1763635927892,0.02921106,91867.0,91866.0,0.05338]
[1763635928194,0.05743106,91867.0,91866.0,0.05338]
[1763635928594,0.00016303,91867.0,91866.0,0.05338]
[1763635928800,0.02701303,91867.0,91866.0,0.05338]
[1763635929912,0.05743106,91867.0,91866.0,0.05338]
[1763635930694,0.16639616,91867.0,91866.0,0.05338]
[1763635931096,0.05743106,91867.0,91866.0,0.05338]
[1763635932708,0.16639616,91867.0,91866.0,0.05338]
[1763635934399,0.05743106,91867.0,91866.0,0.05338]
[1763635935411,0.05743106,91867.0,91866.0,0.1583]
[1763635935803,0.05743106,91867.0,91866.0,0.05338]
[1763635936006,0.05743106,91867.0,91866.0,0.1583]
[1763635938316,0.05743106,91867.0,91866.0,0.05338]
[1763635938512,0.05743106,91867.0,91866.0,0.1583]
[1763635938716,0.05743106,91867.0,91863.0,0.38635]
[1763635938717,0.1640387,91864.0,91863.0,0.38635]
[1763635939020,0.16623673,91864.0,91863.0,0.46572]
[1763635939319,0.16623673,91864.0,91863.0,0.3608]
[1763635939712,0.16623673,91864.0,91863.0,0.38635]
[1763635940516,0.16623673,91864.0,91863.0,0.02555]
[1763635940711,0.16623673,91864.0,91860.0,0.2138933]
[1763635941020,0.1640422,91861.0,91860.0,0.1583]
[1763635941216,0.16624023,91861.0,91860.0,0.1583]
[1763635941418,0.00016303,91867.0,91860.0,0.1583]
[1763635941419,0.00016303,91867.0,91866.0,0.05338]
[1763635941624,0.00016303,91867.0,91866.0,0.5231463]
[1763635941812,0.00016303,91867.0,91866.0,0.1623463]
[1763635942112,0.05743106,91867.0,91866.0,0.1315504]
[1763635942315,0.05743106,91867.0,91866.0,0.05338]
[1763635942520,0.05743106,91867.0,91866.0,0.5191]
[1763635943522,0.05743106,91867.0,91866.0,0.5201]
[1763635943923,0.05743106,91867.0,91866.0,0.5211]
[1763635944124,0.05743106,91867.0,91866.0,0.5201]
[1763635944518,0.05743106,91867.0,91866.0,0.5211]
[1763635945330,0.02921106,91867.0,91866.0,0.5211]
[1763635945527,0.02921106,91867.0,91866.0,0.5992704]
[1763635946131,0.00016303,91867.0,91866.0,0.5992704]
[1763635946428,0.0157,91885.0,91866.0,0.5211]
[1763635946634,0.04821,91882.0,91881.0,0.04901]
[1763635946834,0.05040803,91882.0,91881.0,0.04901]
[1763635954445,0.05040803,91882.0,91881.0,0.1579585]
[1763635955638,0.05040803,91882.0,91881.0,0.04901]
[1763635959442,0.15935533,91882.0,91881.0,0.04901]
[1763635959940,0.05040803,91882.0,91881.0,0.04901]
[1763635960135,0.02639803,91882.0,91881.0,0.04901]
[1763635960336,0.00219803,91882.0,91881.0,0.04901]
[1763635960644,0.05061803,91882.0,91881.0,0.04901]
[1763635968649,0.05061803,91882.0,91881.0,0.1579585]
[1763635970446,0.15956533,91882.0,91881.0,0.1579585]
[1763635971352,0.05061803,91882.0,91881.0,0.1579585]
[1763635977248,0.15956533,91882.0,91881.0,0.1579585]
[1763635977450,0.05061803,91882.0,91881.0,0.1579585]
[1763635982454,0.06037,91876.0,91875.0,0.40543]
[1763635982653,0.06256803,91876.0,91875.0,0.40543]
[1763635983058,0.04881803,91876.0,91875.0,0.40543]
[1763635985761,0.06256803,91876.0,91875.0,0.02152]
[1763635986054,0.42336803,91876.0,91875.0,0.02152]
[1763635986455,0.04662,91873.0,91872.0,0.02168326]
[1763635986652,0.04881803,91873.0,91872.0,0.02168326]
[1763635987760,0.15777603,91873.0,91872.0,0.02168326]
[1763635988460,0.15777603,91873.0,91872.0,0.00016326]
[1763635989660,0.04662,91871.0,91870.0,0.08019678]
[1763635989855,0.04881803,91871.0,91870.0,0.02152]
[1763635990962,0.04981803,91871.0,91870.0,0.02152]
[1763635991365,0.06037,91868.0,91867.0,0.08019678]
[1763635991560,0.06256803,91868.0,91867.0,0.02152]
[1763635991752,0.17153193,91868.0,91867.0,0.02152]
[1763635991956,0.17153193,91868.0,91867.0,0.04463]
[1763635993256,0.17253193,91868.0,91867.0,0.04463]
[1763635995068,0.17253193,91868.0,91864.0,0.05867678]
[1763635995069,0.1555875,91865.0,91864.0,0.05867678]
[1763635995264,0.15778553,91865.0,91863.0,0.05867678]
[1763635995465,0.06037,91864.0,91863.0,0.08019678]
[1763635995663,0.06256803,91864.0,91863.0,0.10330678]
[1763635996362,0.06256803,91864.0,91863.0,0.04463]
[1763635999467,0.1089699,91863.0,91861.0,0.00016326]
[1763635999767,0.40961803,91862.0,91861.0,0.00016326]
[1763635999972,0.40961803,91862.0,91861.0,0.05881725]
[1763636000164,0.40961803,91862.0,91861.0,0.00016326]
[1763636000367,0.06037,91856.0,91855.0,0.02152]
[1763636000565,0.06256803,91856.0,91855.0,0.04463]
[1763636000871,0.17154623,91856.0,91855.0,0.04463]
[1763636001458,0.04662,91855.0,91854.0,0.05865399]
[1763636001664,0.1556005,91854.0,91852.0,0.05865399]
[1763636001866,0.1556005,91854.0,91853.0,0.05865399]
[1763636002064,0.15779853,91854.0,91853.0,0.04463]
[1763636003361,0.15879853,91854.0,91853.0,0.04463]
[1763636005574,0.15779853,91854.0,91853.0,0.04463]
[1763636006280,0.15879853,91854.0,91853.0,0.04463]
[1763636008470,0.15779853,91854.0,91853.0,0.04463]
[1763636009182,0.15879853,91854.0,91853.0,0.04463]
[1763636010379,0.15779853,91854.0,91853.0,0.04463]
[1763636010578,0.1682977,91848.0,91847.0,0.05865399]
[1763636010880,0.1682977,91848.0,91846.0,0.00043546]
[1763636010881,0.0461,91847.0,91846.0,0.00043546]
[1763636011078,0.04829803,91847.0,91846.0,0.00043546]
[1763636012180,0.04829803,91847.0,91846.0,0.02261546]
[1763636014177,0.04829803,91847.0,91846.0,0.00043546]
[1763636016278,0.05029803,91847.0,91846.0,0.00043546]
[1763636016674,0.05029803,91847.0,91846.0,0.04545546]
[1763636016878,0.02729803,91847.0,91846.0,0.04545546]
[1763636017277,0.04970803,91847.0,91846.0,0.04545546]
[1763636018987,0.04870803,91847.0,91846.0,0.04545546]
[1763636019178,0.04970803,91847.0,91846.0,0.04545546]
[1763636019578,0.04970803,91847.0,91846.0,0.00043546]
[1763636019778,0.04870803,91847.0,91846.0,0.00043546]
[1763636019982,0.04970803,91847.0,91846.0,0.00043546]
[1763636021585,0.04870803,91847.0,91846.0,0.00043546]
[1763636021773,0.04970803,91847.0,91846.0,0.00043546]
[1763636024286,0.1531195,91838.0,91837.0,0.10367399]
[1763636024485,0.15531753,91838.0,91837.0,0.10367399]
[1763636024681,0.15531753,91838.0,91837.0,0.04502]
[1763636033288,0.11119753,91838.0,91837.0,0.04502]
[1763636033592,0.13290753,91838.0,91837.0,0.04502]
[1763636033893,0.15531753,91838.0,91837.0,0.04502]
[1763636041694,0.00219803,91838.0,91837.0,0.23230602]
[1763636041899,0.1531029,91852.0,91851.0,0.04502]
[1763636042092,0.16823093,91852.0,91851.0,0.04502]
[1763636044904,0.15530093,91852.0,91851.0,0.04502]
[1763636045901,0.04631803,91852.0,91851.0,0.04502]
[1763636046211,0.02390803,91852.0,91851.0,0.04502]
[1763636046700,0.04698803,91852.0,91851.0,0.12342029]
[1763636046897,0.02390803,91852.0,91851.0,0.04502]
[1763636047095,0.00219803,91852.0,91851.0,0.04502]
[1763636047693,0.0441,91859.0,91858.0,0.04392]
[1763636047895,0.04629803,91859.0,91858.0,0.04392]
[1763636048406,0.04629803,91859.0,91858.0,0.1025997]
[1763636048806,0.04629803,91859.0,91858.0,0.04392]
[1763636049308,0.04629803,91859.0,91858.0,0.21155924]
[1763636050292,0.04629803,91859.0,91858.0,0.1528958]
[1763636052702,0.04629803,91859.0,91858.0,0.04392]
[1763636053605,0.04629803,91859.0,91849.0,0.12554965]
[1763636053606,0.1530817,91853.0,91851.0,0.05866344]
[1763636053905,0.1530817,91853.0,91849.0,0.00016326]
[1763636053906,0.1530841,91851.0,91850.0,0.04392]
[1763636054106,0.15528213,91851.0,91850.0,0.04392]
[1763636055701,0.15528213,91851.0,91850.0,0.04492]
[1763636056106,0.15528213,91851.0,91850.0,0.04592]
[1763636061615,0.15528213,91851.0,91850.0,0.002]
[1763636061819,0.15528213,91851.0,91850.0,0.02317]
[1763636064015,0.15528213,91851.0,91850.0,0.002]
[1763636069321,0.15528213,91851.0,91850.0,0.06066344]
[1763636070118,0.15528213,91851.0,91850.0,0.002]
[1763636070921,0.15528213,91851.0,91850.0,0.06066344]
[1763636074523,0.15528213,91851.0,91850.0,0.002]
[1763636076330,0.1800578,91851.0,91850.0,0.002]
[1763636076834,0.04582,91842.0,91841.0,0.08199344]
[1763636077033,0.04801803,91842.0,91841.0,0.08199344]
[1763636077623,0.04801803,91842.0,91841.0,0.10493344]
[1763636078136,0.04801803,91842.0,91841.0,0.10593344]
[1763636078725,0.04801803,91842.0,91841.0,0.10693344]
[1763636081628,0.04801803,91842.0,91841.0,0.04827]
[1763636081831,0.00219803,91842.0,91841.0,0.04827]
[1763636082441,0.02547803,91842.0,91841.0,0.04827]
[1763636083434,0.00219803,91842.0,91841.0,0.04827]
[1763636084150,0.5155994,91855.0,91854.0,0.04627]
[1763636084351,0.51779743,91855.0,91854.0,0.04627]
[1763636086646,0.15699743,91855.0,91854.0,0.04627]
[1763636093256,0.15699743,91855.0,91854.0,0.1552505]
[1763636093651,0.15699743,91855.0,91854.0,0.04627]
[1763636096453,0.18192876,91855.0,91854.0,0.04627]
[1763636097063,0.1548112,91845.0,91844.0,0.1552624]
[1763636097246,0.15700923,91845.0,91844.0,0.1552624]
[1763636098663,0.04801803,91845.0,91844.0,0.1552624]
[1763636099066,0.00219803,91845.0,91844.0,0.1697124]
[1763636099662,0.00219803,91845.0,91844.0,0.1707124]
[1763636099863,0.02547803,91845.0,91844.0,0.1707124]
[1763636101561,0.00219803,91845.0,91844.0,0.1707124]
[1763636102764,0.02547803,91845.0,91844.0,0.1707124]
[1763636103365,0.00219803,91845.0,91844.0,0.1707124]
[1763636103666,0.1531607,91854.0,91853.0,0.1531717]
[1763636103868,0.18028889,91854.0,91853.0,0.1531717]
[1763636105261,0.07130819,91854.0,91853.0,0.1531717]
[1763636106358,0.04637803,91854.0,91853.0,0.1531717]
[1763636107670,0.04637803,91854.0,91853.0,0.04419]
[1763636109367,0.04637803,91854.0,91853.0,0.1531717]
[1763636110463,0.04637803,91854.0,91853.0,0.04419]
[1763636111274,0.0713216,91854.0,91853.0,0.04419]
[1763636113374,0.0713216,91854.0,91853.0,0.1531717]
[1763636118071,0.0271416,91854.0,91853.0,0.1531717]
[1763636118267,0.02365803,91854.0,91853.0,0.1531717]
[1763636118574,0.04637803,91854.0,91853.0,0.1531717]
[1763636120078,0.00016326,91864.0,91863.0,0.1531599]